bitfinex/quotes_SOLUSD_20241225
["timestamp","ask_amount","ask_price","bid_price","bid_amount"]
[1735168988522,8.98588699,197.37,197.29,8.86039699]
[1735168988695,23.776884,197.36,197.29,8.86039699]
[1735168989621,8.86039699,197.36,197.29,8.86039699]
[1735168990013,23.776884,197.35,197.29,8.86039699]
[1735168990616,32.63728099,197.35,197.28,8.86039699]
[1735168990815,8.98588699,197.34,197.27,8.86039699]
[1735168991133,23.776884,197.33,197.27,8.86039699]
[1735168991806,1.5115,197.32,197.27,8.86039699]
[1735168992008,8.98588699,197.3,197.21,2.07308805]
[1735168992344,23.776884,197.29,197.23,8.86039699]
[1735168996253,23.776884,197.31,197.25,8.86039699]
[1735168999673,23.776884,197.31,197.24,8.86039699]
[1735169000667,32.63728099,197.31,197.24,8.86039699]
[1735169000872,23.776884,197.31,197.25,8.86039699]
[1735169003361,7.9689,197.32,197.26,8.86039699]
[1735169003564,1.5115,197.32,197.28,8.86039699]
[1735169004777,1.6123,197.41,197.31,8.86039699]
[1735169004946,1.6123,197.41,197.37,8.86039699]
[1735169005351,7.92002293,197.44,197.39,8.86039699]
[1735169005878,10.47269699,197.46,197.39,8.86039699]
[1735169007158,1.6123,197.46,197.4,8.86039699]
[1735169007678,1.6123,197.46,197.41,8.86039699]
[1735169011365,1.6123,197.46,197.4,8.86039699]
[1735169011778,1.6123,197.46,197.39,8.86039699]
[1735169015489,10.47269699,197.46,197.39,8.86039699]
[1735169016188,23.776884,197.45,197.37,20.0]
[1735169016386,8.86039699,197.43,197.36,8.86039699]
[1735169016676,8.86039699,197.43,197.35,8.86039699]
[1735169016887,8.86039699,197.43,197.36,8.86039699]
[1735169017389,23.776884,197.45,197.36,8.86039699]
[1735169017567,8.86039699,197.44,197.37,8.86039699]
[1735169018190,8.86039699,197.44,197.36,8.86039699]
[1735169019367,32.63728099,197.43,197.36,8.86039699]
[1735169019669,32.63728099,197.41,197.34,8.86039699]
[1735169019989,23.776884,197.4,197.34,8.86039699]
[1735169021194,23.776884,197.41,197.35,8.86039699]
[1735169022394,8.86039699,197.4,197.33,8.86039699]
[1735169023688,23.776884,197.41,197.33,8.86039699]
[1735169023878,8.86039699,197.4,197.33,8.86039699]
[1735169030603,23.776884,197.41,197.35,8.86039699]
[1735169030785,20.0,197.45,197.38,8.86039699]
[1735169030987,8.86039699,197.45,197.38,8.86039699]
[1735169031798,8.86039699,197.44,197.38,8.86039699]
[1735169032003,8.86039699,197.44,197.37,8.86039699]
[1735169033710,8.86039699,197.44,197.38,8.86039699]
[1735169033901,1.6123,197.46,197.38,8.86039699]
[1735169033902,8.86039699,197.45,197.38,8.86039699]
[1735169034208,23.776884,197.44,197.38,8.86039699]
[1735169035214,23.776884,197.44,197.34,43.4282074]
[1735169035215,1.6123,197.46,197.41,8.86039699]
[1735169037103,12.6574,197.52,197.45,8.86039699]
[1735169037104,1.5702,197.52,197.45,8.86039699]
[1735169037286,1.5702,197.52,197.47,8.86039699]
[1735169038603,8.86039699,197.56,197.49,8.86039699]
[1735169038907,1.5702,197.57,197.44,20.0]
[1735169038908,8.86039699,197.53,197.44,20.0]
[1735169039109,8.86039699,197.53,197.46,8.86039699]
[1735169041091,32.63728099,197.52,197.45,8.86039699]
[1735169041294,23.776884,197.52,197.46,8.86039699]
[1735169045881,32.63728099,197.52,197.45,8.86039699]
[1735169046256,23.776884,197.52,197.46,8.86039699]
[1735169048936,32.63728099,197.52,197.46,8.86039699]
[1735169050362,23.776884,197.52,197.46,8.86039699]
[1735169051561,20.0,197.56,197.47,8.86039699]
[1735169051731,8.86039699,197.54,197.47,8.86039699]
[1735169051933,8.86039699,197.53,197.46,8.86039699]
[1735169052753,8.86039699,197.54,197.47,8.86039699]
[1735169055277,8.86039699,197.52,197.44,62.662]
[1735169055446,8.86039699,197.52,197.45,28.86039699]
[1735169055651,8.86039699,197.54,197.47,8.86039699]
[1735169058366,8.86039699,197.56,197.49,8.86039699]
[1735169059154,8.86039699,197.55,197.49,8.86039699]
[1735169059562,8.86039699,197.56,197.49,8.86039699]
[1735169060695,8.86039699,197.55,197.49,8.86039699]
[1735169060843,8.86039699,197.55,197.48,8.86039699]
[1735169061543,8.86039699,197.55,197.47,20.0]
[1735169061741,8.86039699,197.55,197.48,8.86039699]
[1735169068736,8.86039699,197.54,197.47,28.86039699]
[1735169068943,8.86039699,197.55,197.48,8.86039699]
[1735169084128,8.86039699,197.55,197.47,20.0]
[1735169084363,8.86039699,197.55,197.48,8.86039699]
[1735169085055,32.63728099,197.56,197.48,8.86039699]
[1735169086890,32.63728099,197.56,197.49,8.86039699]
[1735169087772,1.5702,197.57,197.51,8.86039699]
[1735169087971,10.43059699,197.57,197.5,8.86039699]
[1735169088176,8.86039699,197.56,197.49,8.86039699]
[1735169088371,8.86039699,197.56,197.49,20.0]
[1735169088579,8.86039699,197.55,197.49,20.0]
[1735169088978,32.63728099,197.56,197.49,20.0]
[1735169091505,32.63728099,197.56,197.46,42.6603]
[1735169091707,32.63728099,197.56,197.48,8.86039699]
[1735169091904,8.86039699,197.53,197.45,6.79866253]
[1735169092097,8.86039699,197.52,197.45,8.86039699]
[1735169092291,8.86039699,197.51,197.44,8.86039699]
[1735169092489,8.86039699,197.51,197.41,0.75953538]
[1735169092711,8.86039699,197.5,197.44,8.86039699]
[1735169093709,10.38949699,197.5,197.42,8.86039699]
[1735169094008,8.86039699,197.49,197.42,8.86039699]
[1735169099690,10.38949699,197.5,197.43,8.86039699]
[1735169100594,1.5291,197.5,197.45,8.86039699]
[1735169101107,8.86039699,197.49,197.42,8.86039699]
[1735169101301,8.86039699,197.46,197.39,28.86039699]
[1735169101499,8.86039699,197.45,197.39,20.0]
[1735169101701,8.86039699,197.45,197.38,8.86039699]
[1735169102100,8.86039699,197.46,197.39,8.86039699]
[1735169102291,32.63728099,197.48,197.4,8.86039699]
[1735169102612,32.63728099,197.48,197.41,8.86039699]
[1735169103211,32.63728099,197.49,197.41,8.86039699]
[1735169104328,32.63728099,197.49,197.42,8.86039699]
[1735169105193,1.5291,197.5,197.43,8.86039699]
[1735169105406,10.38949699,197.5,197.43,8.86039699]
[1735169108015,1.5291,197.5,197.43,8.86039699]
[1735169109923,10.38949699,197.5,197.43,8.86039699]
[1735169110217,8.86039699,197.49,197.4,30.0]
[1735169110512,8.86039699,197.49,197.41,28.86039699]
[1735169110714,8.86039699,197.49,197.42,8.86039699]
[1735169110904,10.38949699,197.5,197.43,8.86039699]
[1735169111107,23.776884,197.49,197.43,8.86039699]
[1735169111308,1.5291,197.5,197.44,8.86039699]
[1735169111711,1.5291,197.5,197.45,8.86039699]
[1735169113706,1.5291,197.5,197.44,8.86039699]
[1735169117529,1.5291,197.5,197.43,28.86039699]
[1735169121006,7.92002293,197.58,197.43,28.86039699]
[1735169121007,31.422384,197.57,197.46,8.86039699]
[1735169121208,8.86039699,197.54,197.46,8.86039699]
[1735169121528,8.86039699,197.54,197.47,8.86039699]
[1735169121712,8.86039699,197.55,197.48,8.86039699]
[1735169122030,8.86039699,197.55,197.47,8.86039699]
[1735169122329,8.86039699,197.54,197.46,8.86039699]
[1735169123629,8.86039699,197.53,197.46,8.86039699]
[1735169124035,8.86039699,197.54,197.46,8.86039699]
[1735169126630,23.776884,197.56,197.48,8.86039699]
[1735169126832,7.6455,197.57,197.5,8.86039699]
[1735169128831,16.50589699,197.57,197.5,8.86039699]
[1735169132545,16.50589699,197.57,197.49,8.86039699]
[1735169133728,7.6455,197.57,197.5,8.86039699]
[1735169134036,7.6455,197.57,197.51,8.86039699]
[1735169134238,1.5786,197.57,197.54,8.86039699]
[1735169136560,8.86039699,197.61,197.54,8.86039699]
[1735169138261,7.8749,197.62,197.54,8.86039699]
[1735169138441,8.86039699,197.61,197.54,8.86039699]
[1735169138866,16.73529699,197.62,197.54,8.86039699]
[1735169139867,8.86039699,197.61,197.54,8.86039699]
[1735169140168,8.86039699,197.61,197.51,30.0]
[1735169140169,8.86039699,197.58,197.51,20.0]
[1735169140461,10.45229699,197.56,197.48,8.86039699]
[1735169140641,8.86039699,197.54,197.47,8.86039699]
[1735169140844,8.86039699,197.52,197.43,6.70244483]
[1735169141026,8.86039699,197.51,197.44,8.86039699]
[1735169141222,8.86039699,197.51,197.43,8.86039699]
[1735169142162,8.86039699,197.51,197.44,8.86039699]
[1735169142663,8.86039699,197.52,197.45,8.86039699]
[1735169144175,8.86039699,197.52,197.44,8.86039699]
[1735169144662,8.86039699,197.48,197.41,8.86039699]
[1735169145695,8.86039699,197.47,197.4,8.86039699]
[1735169145961,8.86039699,197.44,197.37,8.86039699]
[1735169148037,10.43249699,197.43,197.36,8.86039699]
[1735169148238,1.5721,197.43,197.36,8.86039699]
[1735169148436,1.5721,197.43,197.37,8.86039699]
[1735169148737,1.5721,197.43,197.38,8.86039699]
[1735169149243,32.76277099,197.42,197.32,11.16170721]
[1735169149449,32.63728099,197.42,197.35,8.86039699]
[1735169149632,1.5721,197.43,197.36,8.86039699]
[1735169149845,1.5721,197.43,197.37,8.86039699]
[1735169151249,1.5721,197.43,197.38,8.86039699]
[1735169153166,1.5721,197.43,197.37,8.86039699]
[1735169153367,10.43249699,197.43,197.36,28.86039699]
[1735169153975,10.43249699,197.43,197.36,8.86039699]
[1735169154162,1.5721,197.43,197.37,8.86039699]
[1735169155768,10.43249699,197.43,197.36,8.86039699]
[1735169158177,23.776884,197.42,197.36,8.86039699]
[1735169159068,1.5721,197.43,197.37,8.86039699]
[1735169159379,1.5721,197.43,197.4,8.86039699]
[1735169162356,1.5721,197.43,197.38,8.86039699]
[1735169162682,32.63728099,197.42,197.35,8.86039699]
[1735169164879,8.86039699,197.41,197.34,8.86039699]
[1735169165060,38.81638099,197.4,197.33,8.86039699]
[1735169165253,8.98588699,197.39,197.32,8.86039699]
[1735169165575,8.86039699,197.38,197.31,8.86039699]
[1735169165874,0.12549,197.39,197.3,8.86039699]
[1735169165875,1.6541,197.36,197.3,8.86039699]
[1735169166086,10.51449699,197.36,197.29,8.86039699]
[1735169166580,1.6541,197.36,197.32,8.86039699]
[1735169166784,1.6541,197.36,197.34,8.86039699]
[1735169166943,29.955984,197.4,197.29,12.6714]
[1735169167143,6.1791,197.4,197.34,8.86039699]
[1735169170289,6.1791,197.4,197.35,8.86039699]
[1735169171198,6.1791,197.4,197.34,8.86039699]
[1735169171482,6.1791,197.4,197.33,8.86039699]
[1735169171667,32.63728099,197.39,197.27,1.6065]
[1735169171875,8.86039699,197.38,197.31,8.86039699]
[1735169172078,8.86039699,197.36,197.29,8.86039699]
[1735169172379,8.86039699,197.35,197.28,8.86039699]
[1735169173286,1.6541,197.34,197.28,8.86039699]
[1735169175079,1.6541,197.34,197.27,8.86039699]
[1735169175385,32.63728099,197.33,197.26,8.86039699]
[1735169175891,23.776884,197.33,197.26,8.86039699]
[1735169177584,23.776884,197.33,197.27,8.86039699]
[1735169177783,1.6541,197.34,197.29,8.86039699]
[1735169177987,1.6541,197.34,197.31,8.86039699]
[1735169178188,1.6541,197.34,197.32,8.86039699]
[1735169178486,1.6541,197.34,197.31,8.86039699]
[1735169179285,8.86039699,197.39,197.32,8.86039699]
[1735169179475,8.86039699,197.39,197.33,8.86039699]
[1735169179476,1.5071,197.39,197.33,8.86039699]
[1735169179867,10.36749699,197.39,197.32,8.86039699]
[1735169181066,23.776884,197.38,197.31,8.86039699]
[1735169181267,32.63728099,197.38,197.3,8.86039699]
[1735169181690,23.776884,197.38,197.32,8.86039699]
[1735169183686,1.5071,197.39,197.33,8.86039699]
[1735169184388,1.5071,197.39,197.32,8.86039699]
[1735169185087,1.5071,197.39,197.33,8.86039699]
[1735169185273,1.5071,197.39,197.32,8.86039699]
[1735169185480,1.5071,197.39,197.33,8.86039699]
[1735169186087,1.5071,197.39,197.35,8.86039699]
[1735169192407,8.86039699,197.38,197.31,8.86039699]
[1735169192699,23.776884,197.37,197.29,8.86039699]
[1735169194099,8.86039699,197.36,197.29,8.86039699]
[1735169194272,8.86039699,197.36,197.28,8.86039699]
[1735169194670,32.76277099,197.35,197.24,0.76000513]
[1735169194902,8.86039699,197.32,197.25,8.86039699]
[1735169195196,32.63728099,197.31,197.21,36.33248771]
[1735169195401,32.63728099,197.31,197.24,8.86039699]
[1735169195903,23.776884,197.29,197.18,0.76024707]
[1735169196216,23.776884,197.29,197.22,8.86039699]
[1735169197506,23.776884,197.29,197.23,8.86039699]
[1735169198103,1.6393,197.28,197.23,8.86039699]
[1735169198403,1.6393,197.28,197.24,8.86039699]
[1735169198802,1.6393,197.28,197.25,8.86039699]
[1735169199499,6.2159,197.32,197.27,8.86039699]
[1735169199803,6.2159,197.32,197.26,8.86039699]
[1735169200691,6.2159,197.32,197.27,8.86039699]
[1735169201199,6.2159,197.32,197.26,8.86039699]
[1735169202800,6.2159,197.32,197.27,8.86039699]
[1735169203188,6.2159,197.32,197.26,8.86039699]
[1735169205105,15.07629699,197.32,197.25,8.86039699]
[1735169205295,32.63728099,197.31,197.24,8.86039699]
[1735169207110,32.63728099,197.31,197.23,8.86039699]
[1735169207709,23.776884,197.29,197.23,8.86039699]
[1735169208307,23.902374,197.3,197.23,8.86039699]
[1735169209001,8.86039699,197.31,197.18,12.6786]
[1735169209002,23.776884,197.31,197.25,8.86039699]
[1735169210615,32.63728099,197.31,197.24,8.86039699]
[1735169211613,23.776884,197.31,197.25,8.86039699]
[1735169214712,6.2159,197.32,197.25,8.86039699]
[1735169214896,6.2159,197.32,197.26,8.86039699]
[1735169215097,6.2159,197.32,197.27,8.86039699]
[1735169219025,6.2159,197.32,197.26,8.86039699]
[1735169219917,8.86039699,197.29,197.22,28.86039699]
[1735169220519,0.12549,197.3,197.23,8.86039699]
[1735169220520,8.98588699,197.3,197.23,8.86039699]
[1735169220697,23.776884,197.29,197.23,8.86039699]
[1735169220899,23.776884,197.29,197.22,8.86039699]
[1735169220900,32.63728099,197.29,197.22,8.86039699]
[1735169221324,23.776884,197.27,197.15,5.21979965]
[1735169221620,23.776884,197.27,197.21,8.86039699]
[1735169222124,23.776884,197.27,197.2,8.86039699]
[1735169222705,23.776884,197.27,197.21,8.86039699]
[1735169226826,23.776884,197.27,197.2,8.86039699]
[1735169227127,32.63728099,197.25,197.18,8.86039699]
[1735169232727,7.8821,197.26,197.19,8.86039699]
[1735169232906,7.8821,197.26,197.14,13.44128275]
[1735169233108,7.8821,197.26,197.2,8.86039699]
[1735169233426,1.5693,197.26,197.22,8.86039699]
[1735169236940,1.5693,197.26,197.23,8.86039699]
[1735169241333,1.5693,197.26,197.22,8.86039699]
[1735169244941,23.776884,197.3,197.24,8.86039699]
[1735169245428,23.776884,197.3,197.25,8.86039699]
[1735169245943,32.63728099,197.3,197.17,32.01589192]
[1735169246119,8.86039699,197.27,197.2,8.86039699]
[1735169246327,8.86039699,197.26,197.19,8.86039699]
[1735169247726,8.86039699,197.27,197.2,8.86039699]
[1735169248047,23.776884,197.27,197.2,8.86039699]
[1735169248843,23.776884,197.27,197.21,8.86039699]
[1735169249018,23.776884,197.3,197.23,8.86039699]
[1735169249224,23.776884,197.3,197.24,8.86039699]
[1735169250731,16.75199699,197.31,197.24,8.86039699]
[1735169252160,8.86039699,197.3,197.22,8.86039699]
[1735169252358,8.86039699,197.29,197.22,8.86039699]
[1735169252664,8.86039699,197.27,197.2,8.86039699]
[1735169252854,8.86039699,197.27,197.19,8.86039699]
[1735169253555,8.86039699,197.27,197.2,8.86039699]
[1735169255059,8.86039699,197.27,197.15,30.76056356]
[1735169255060,8.86039699,197.27,197.19,8.86039699]
[1735169256732,23.776884,197.25,197.18,8.86039699]
[1735169257055,23.776884,197.25,197.17,8.86039699]
[1735169257056,32.63728099,197.25,197.17,8.86039699]
[1735169257550,23.776884,197.25,197.18,8.86039699]
[1735169259763,23.776884,197.25,197.19,8.86039699]
[1735169260063,8.86039699,197.29,197.22,8.86039699]
[1735169260639,8.86039699,197.28,197.21,8.86039699]
[1735169264856,8.86039699,197.29,197.22,8.86039699]
[1735169265055,23.776884,197.28,197.22,8.86039699]
[1735169268164,23.902374,197.3,197.22,8.86039699]
[1735169268839,8.86039699,197.29,197.22,8.86039699]
[1735169269361,23.776884,197.28,197.2,8.86039699]
[1735169272664,23.776884,197.26,197.2,8.86039699]
[1735169273046,25.438984,197.24,197.13,13.44233832]
[1735169273352,25.438984,197.24,197.12,6.222]
[1735169273353,8.86039699,197.23,197.12,6.222]
[1735169273552,8.86039699,197.23,197.16,8.86039699]
[1735169273761,8.86039699,197.23,197.15,8.86039699]
[1735169276048,8.86039699,197.23,197.16,8.86039699]
[1735169276673,23.776884,197.22,197.15,8.86039699]
[1735169276975,8.86039699,197.21,197.14,8.86039699]
[1735169277341,23.776884,197.2,197.13,28.86039699]
[1735169277551,32.63728099,197.2,197.13,28.86039699]
[1735169278579,32.63728099,197.2,197.06,30.76086577]
[1735169278580,17.00149699,197.17,197.06,30.76086577]
[1735169278757,8.86039699,197.16,197.09,8.86039699]
[1735169279079,8.1411,197.17,197.11,8.86039699]
[1735169279376,8.1411,197.17,197.12,8.86039699]
[1735169280577,23.776884,197.2,197.06,42.6864]
[1735169280879,1.6621,197.12,197.06,8.86039699]
[1735169281176,1.6621,197.12,196.99,37.9156085]
[1735169281177,32.63728099,197.11,196.99,20.6060085]
[1735169281531,32.63728099,197.11,197.02,8.86039699]
[1735169281776,0.12549,197.1,196.99,7.9156085]
[1735169281949,32.63728099,197.11,196.96,31.6383]
[1735169281950,23.776884,197.08,196.96,31.6383]
[1735169282149,23.776884,197.08,197.01,8.86039699]
[1735169282867,0.12549,197.07,196.95,30.0]
[1735169283076,0.12549,197.07,197.0,8.86039699]
[1735169283956,0.12549,197.07,197.01,8.86039699]
[1735169284772,0.12549,197.07,197.0,8.86039699]
[1735169285284,1.6343,197.03,196.97,28.86039699]
[1735169285671,1.6343,197.03,196.98,8.86039699]
[1735169286676,1.6343,197.03,196.97,20.0]
[1735169286866,1.6343,197.03,196.9,41.77421796]
[1735169286867,23.902374,197.02,196.9,54.47041796]
[1735169287074,32.76277099,197.02,196.95,8.86039699]
[1735169288270,32.76277099,197.02,196.9,12.6962]
[1735169288271,8.1854,197.03,196.97,8.86039699]
[1735169288788,8.1854,197.03,196.92,30.0]
[1735169289016,8.1854,197.03,196.97,8.86039699]
[1735169289987,8.1854,197.03,196.98,8.86039699]
[1735169290688,1.6343,197.03,196.99,8.86039699]
[1735169292386,1.6343,197.03,197.0,8.86039699]
[1735169293298,1.6343,197.03,196.99,8.86039699]
[1735169293485,8.86039699,197.07,197.0,8.86039699]
[1735169293486,10.42029699,197.07,197.0,8.86039699]
[1735169293677,23.776884,197.06,197.0,8.86039699]
[1735169294700,1.5599,197.07,197.02,8.86039699]
[1735169294999,1.5599,197.07,197.04,8.86039699]
[1735169295202,1.5599,197.07,197.01,8.86039699]
[1735169295388,1.5599,197.07,197.0,8.86039699]
[1735169297797,1.5599,197.07,196.99,20.0]
[1735169297798,1.5599,197.07,197.01,8.86039699]
[1735169301085,10.42029699,197.07,197.0,8.86039699]
[1735169301483,23.776884,197.06,197.0,8.86039699]
[1735169301807,32.63728099,197.06,196.99,8.86039699]
[1735169302501,8.86039699,197.05,196.98,8.86039699]
[1735169304109,32.63728099,197.06,196.99,8.86039699]
[1735169304306,8.86039699,197.04,196.94,30.0]
[1735169304488,8.86039699,197.03,196.96,8.86039699]
[1735169304807,23.776884,197.03,196.97,8.86039699]
[1735169305806,8.86039699,197.06,196.99,8.86039699]
[1735169305986,8.86039699,197.05,196.98,8.86039699]
[1735169306394,8.86039699,197.04,196.97,8.86039699]
[1735169307103,23.776884,197.03,196.97,8.86039699]
[1735169307811,8.86039699,197.02,196.95,8.86039699]
[1735169308004,1.5724,197.0,196.94,8.86039699]
[1735169308307,32.63728099,196.96,196.89,8.86039699]
[1735169309007,23.776884,196.96,196.89,8.86039699]
[1735169309210,23.776884,196.96,196.9,8.86039699]
[1735169310013,23.776884,196.96,196.89,8.86039699]
[1735169310510,23.902374,196.97,196.91,8.86039699]
[1735169310704,23.776884,196.97,196.91,8.86039699]
[1735169310918,15.00739699,196.99,196.91,8.86039699]
[1735169311091,23.776884,196.98,196.92,8.86039699]
[1735169313811,0.12549,196.97,196.92,8.86039699]
[1735169314019,8.98588699,196.97,196.88,20.0]
[1735169314196,23.776884,196.96,196.9,8.86039699]
[1735169315116,23.776884,196.94,196.88,28.86039699]
[1735169317121,23.776884,196.94,196.89,8.86039699]
[1735169318204,23.776884,196.94,196.88,8.86039699]
[1735169319216,1.5787,196.95,196.91,8.86039699]
[1735169319421,1.5787,196.95,196.92,8.86039699]
[1735169319723,1.5787,196.95,196.91,8.86039699]
[1735169320192,1.5787,196.95,196.85,32.6999]
[1735169320398,23.902374,196.94,196.87,8.86039699]
[1735169320806,23.776884,196.94,196.89,8.86039699]
[1735169321010,1.5787,196.95,196.9,8.86039699]
[1735169321699,1.5787,196.95,196.92,8.86039699]
[1735169324424,1.5787,196.95,196.86,12.6989]
[1735169324629,1.5787,196.95,196.92,8.86039699]
[1735169324929,1.5787,196.95,196.9,8.86039699]
[1735169325725,1.5787,196.95,196.91,8.86039699]
[1735169326229,1.5787,196.95,196.9,8.86039699]
[1735169330920,1.5787,196.95,196.91,8.86039699]
[1735169334541,1.5787,196.95,196.89,8.86039699]
[1735169335632,1.5787,196.95,196.83,8.1555]
[1735169335837,23.776884,196.94,196.88,8.86039699]
[1735169336549,23.776884,196.94,196.89,8.86039699]
[1735169340448,1.5787,196.95,196.89,8.86039699]
[1735169340750,1.5787,196.95,196.91,8.86039699]
[1735169340956,6.147,196.99,196.91,8.86039699]
[1735169341120,6.147,196.99,196.95,8.86039699]
[1735169341324,1.537,197.0,196.95,8.86039699]
[1735169343944,1.537,197.0,196.96,8.86039699]
[1735169344620,1.537,197.0,196.97,8.86039699]
[1735169346254,6.3942,197.04,196.98,8.86039699]
[1735169347755,1.515,197.05,197.01,8.86039699]
[1735169348648,1.515,197.05,197.0,8.86039699]
[1735169349749,1.515,197.05,197.01,8.86039699]
[1735169361138,1.6095,197.09,197.04,8.86039699]
[1735169361477,1.6095,197.09,197.05,8.86039699]
[1735169362466,1.6095,197.09,197.04,8.86039699]
[1735169371488,1.6095,197.09,197.05,8.86039699]
[1735169371987,1.6095,197.09,197.06,8.86039699]
[1735169373470,1.6095,197.09,197.01,42.6892]
[1735169373471,8.1239,197.14,197.08,8.86039699]
[1735169373671,8.1239,197.14,197.1,8.86039699]
[1735169373876,1.553,197.14,197.11,8.86039699]
[1735169374391,1.553,197.14,197.1,8.86039699]
[1735169375893,8.86039699,197.18,197.1,8.86039699]
[1735169376093,6.5964,197.19,197.12,8.86039699]
[1735169376391,15.45679699,197.19,197.12,8.86039699]
[1735169377391,8.86039699,197.18,197.11,8.86039699]
[1735169382583,15.45679699,197.19,197.12,8.86039699]
[1735169383185,15.45679699,197.19,197.08,30.0]
[1735169383388,23.776884,197.18,197.11,8.86039699]
[1735169383590,32.63728099,197.18,197.11,8.86039699]
[1735169391692,8.86039699,197.16,197.02,46.90019387]
[1735169391987,32.76277099,197.13,197.06,8.86039699]
[1735169392285,32.63728099,197.12,197.05,8.86039699]
[1735169392498,23.776884,197.12,197.05,8.86039699]
[1735169393491,23.776884,197.12,197.06,8.86039699]
[1735169397896,1.5101,197.13,197.08,8.86039699]
[1735169398075,1.5101,197.13,197.09,8.86039699]
[1735169398675,1.5101,197.13,197.1,8.86039699]
[1735169399899,1.5101,197.13,197.03,42.6878]
[1735169400086,1.5101,197.13,197.1,8.86039699]
[1735169401097,1.5101,197.13,197.09,8.86039699]
[1735169401401,23.776884,197.12,197.04,20.0]
[1735169401627,32.63728099,197.12,197.04,28.86039699]
[1735169401788,38.68518099,197.12,197.04,28.86039699]
[1735169401967,38.68518099,197.12,197.04,20.0]
[1735169402299,38.68518099,197.12,197.04,8.86039699]
[1735169402678,29.824784,197.12,197.06,8.86039699]
[1735169404000,0.12549,197.11,197.05,8.86039699]
[1735169404197,0.12549,197.11,197.04,8.86039699]
[1735169404700,8.98588699,197.11,197.04,8.86039699]
[1735169405074,23.776884,197.1,197.04,8.86039699]
[1735169405299,0.12549,197.11,197.04,8.86039699]
[1735169406524,0.12549,197.11,197.05,8.86039699]
[1735169406729,0.12549,197.11,197.04,8.86039699]
[1735169409932,0.12549,197.11,197.06,8.86039699]
[1735169410222,23.776884,197.12,197.06,8.86039699]
[1735169412124,1.5101,197.13,197.06,8.86039699]
[1735169412333,1.5101,197.13,197.01,35.44158796]
[1735169412334,1.5101,197.13,197.11,8.86039699]
[1735169412510,6.5273,197.17,197.12,8.86039699]
[1735169412696,1.6423,197.18,197.13,8.86039699]
[1735169412896,1.6423,197.18,197.14,8.86039699]
[1735169414127,1.6423,197.18,197.13,8.86039699]
[1735169414304,1.6423,197.18,197.12,8.86039699]
[1735169414724,1.6423,197.18,197.07,42.6857]
[1735169414906,1.6423,197.18,197.12,8.86039699]
[1735169415209,1.6423,197.18,197.11,8.86039699]
[1735169415750,1.6423,197.18,197.12,8.86039699]
[1735169417734,1.6423,197.18,197.14,8.86039699]
[1735169417928,1.6423,197.18,197.15,8.86039699]
[1735169420139,1.6423,197.18,197.14,8.86039699]
[1735169421224,23.776884,197.17,197.1,8.86039699]
[1735169421425,32.63728099,197.15,197.08,8.86039699]
[1735169421640,8.86039699,197.15,197.07,8.86039699]
[1735169421835,8.86039699,197.14,197.07,8.86039699]
[1735169422141,8.86039699,197.12,197.05,8.86039699]
[1735169423104,8.86039699,197.12,197.04,8.86039699]
[1735169423822,1.6108,197.1,197.03,20.0]
[1735169424019,1.6108,197.1,197.06,8.86039699]
[1735169424218,1.6108,197.1,197.05,8.86039699]
[1735169425344,1.6108,197.1,197.06,8.86039699]
[1735169427034,1.6108,197.1,197.07,8.86039699]
[1735169428214,8.86039699,197.14,197.07,8.86039699]
[1735169428414,32.76277099,197.14,197.07,8.86039699]
[1735169429327,8.86039699,197.13,197.06,8.86039699]
[1735169432352,32.63728099,197.12,197.04,8.86039699]
[1735169433340,32.63728099,197.12,197.02,20.0]
[1735169433341,0.12549,197.11,197.02,20.0]
[1735169433640,10.42249699,197.1,197.03,8.86039699]
[1735169435441,23.776884,197.09,197.03,8.86039699]
[1735169436045,8.98588699,197.08,197.01,8.86039699]
[1735169436252,23.776884,197.07,197.0,8.86039699]
[1735169437150,23.776884,197.07,197.01,8.86039699]
[1735169438751,23.776884,197.09,197.05,8.86039699]
[1735169438952,1.5621,197.1,197.05,8.86039699]
[1735169440741,1.5621,197.1,197.04,8.86039699]
[1735169441358,32.76277099,197.09,197.02,8.86039699]
[1735169441659,32.76277099,197.09,197.01,8.86039699]
[1735169441839,1.5621,197.1,197.06,8.86039699]
[1735169443262,7.7171,197.15,197.08,8.86039699]
[1735169443758,7.7171,197.15,197.1,8.86039699]
[1735169443964,1.5621,197.15,197.1,8.86039699]
[1735169444654,1.5621,197.15,197.09,8.86039699]
[1735169445357,1.5621,197.15,197.08,8.86039699]
[1735169445658,32.76277099,197.14,197.04,20.0]
[1735169445874,8.86039699,197.13,197.04,20.0]
[1735169446030,8.86039699,197.13,197.05,8.86039699]